Cogmind - Beta 13 X1 @@@ ROGUE MODE // 2023.08.15 @ 18:07:42 Player: VR-DUX Result: Destroyed by EX-DEC with AWS/EX-DEC Performance ------------- Evolutions (0) 0 Regions Visited (3) 600 Robots Destroyed (37) 185 Value Destroyed (774) 774 Prototype IDs (23) 460 Alien Tech Used (0) 0 Bonus (347) 347 TOTAL SCORE: 2366 Bonus ------- Follower Combat Kills 60 Aligned with FarCom 300 Friendly Fire -13 Cogmind --------- Core Integrity 0/250 Matter 208/300 Energy 125/125 System Corruption 2% Temperature Warm (196) Movement Treading (160) Location -10/Exiles Parts ------- > --- POWER (1) -------- Light Ion Engine > --- PROPULSION (2) --- Light Treads Light Treads > --- UTILITY (2) ------ Large Storage Unit Structural Scanner > --- WEAPON (2) ------- Particle Gun Assault Rifle > --- INVENTORY (15) --- Light Ion Engine Light Nuclear Core Medium Storage Unit Large Storage Unit Advanced Weight Redist. System Sensor Array Signal Interpreter Medium Laser Latent Energy Streamer Mining Claw Peak State ------------ > --- POWER ------------ Light Ion Engine > --- PROPULSION ------- Light Treads Light Treads > --- UTILITY ---------- Large Storage Unit Structural Scanner > --- WEAPON ----------- Particle Gun Latent Energy Streamer > --- INVENTORY -------- Light Ion Engine Light Nuclear Core Compact Wheel Compact Wheel Medium Storage Unit Large Storage Unit Advanced Weight Redist. System Sensor Array Signal Interpreter Medium Laser Assault Rifle Mining Claw [Rating: 18] Favorites ----------- Power Light Ion Engine Engine Light Ion Engine Power Core Nuclear Core Propulsion Light Treads Treads Light Treads Leg Aluminum Leg Utility Large Storage Unit Device Structural Scanner Storage Large Storage Unit Processor Signal Interpreter Protection Improved Light Armor Plating Weapon EM Pulse Gun Energy Gun EM Pulse Gun Energy Cannon Latent Energy Streamer Ballistic Gun Assault Rifle Launcher Grenade Launcher Slashing Weapon Mining Claw Build | -11 -10 -10 -10 ------- Run | Jun Mat Min Exi Slots Evolved . | . . . . Power . | . . . . Propulsion . | . . . . Utility . | . . . . Weapon . | . . . . Parts Attached 29 | . 11 13 5 Power 4 | . 2 2 . Engine 3 | . 2 1 . Core 1 | . . 1 . Reactor . | . . . . Propulsion 6 | . 3 3 . Treads 6 | . 3 3 . Leg . | . . . . Wheel . | . . . . Hover . | . . . . Flight . | . . . . Utility 5 | . 2 2 1 Device 1 | . . 1 . Storage 2 | . 1 . 1 Processor 1 | . 1 . . Hackware . | . . . . Protection 1 | . . 1 . Artifact . | . . . . Weapon 14 | . 4 6 4 Energy Gun 3 | . 1 2 . Energy Cannon 2 | . . . 2 Ballistic Gun 4 | . 1 1 2 Ballistic Cannon . | . . . . Launcher 4 | . 2 2 . Special Weapon . | . . . . Impact Weapon . | . . . . Slashing Weapon 1 | . . 1 . Piercing Weapon . | . . . . Special Melee Weapon . | . . . . Unidentified Prototypes . | . . . . Parts Lost 8 | . . 8 . Power 2 | . . 2 . Propulsion 3 | . . 3 . Utility 1 | . . 1 . Weapon 2 | . . 2 . Highest Loss Streak 8 | . . 8 . To Critical Strikes . | . . . . Average Slot Usage (%) 92 | . 87 94 100 Engine 13 | . 14 11 14 Treads 27 | . 26 27 28 Device 6 | . . 11 14 Storage 14 | . 14 14 14 Processor 1 | . 2 . . Energy Gun 14 | . 15 13 14 Ballistic Gun 8 | . 6 7 13 Launcher 3 | . 6 1 . Slashing Weapon 1 | . . 4 . Naked Turns . | . . . . Heaviest Build 37 | 12 30 33 37 Greatest Support 40 | 20 40 40 40 Greatest Overweight (x) 1 | . . 1 . Average Overweight (x) . | . . . . Largest Inventory Capacity 15 | 8 15 15 15 Average Capacity 12 | 8 10 15 15 Most Carried 15 | 6 15 15 12 Average Carried 9 | 6 8 9 10 Final Capacity 15 | 8 15 15 15 Final Carried 13 | 6 13 11 10 Class Distribution -------------------- 59% | Mutant 40% | Scavenger-Mutant Dominant Class ---------------- Mutant | -10/Materials Scavenger-Mutant | -10/Mines Scavenger-Mutant | -10/Exiles Resources | -11 -10 -10 -10 ----------- Run | Jun Mat Min Exi Matter Collected 726 | 200 366 160 . Remotely . | . . . . Salvage Created 986 | 91 703 152 40 Parts 74 | 3 60 7 4 Haulers Intercepted 1 | . 1 . . Recyclers Shooed 1 | . 1 . . Parts Field Recycled . | . . . . Retrieved Matter . | . . . . Parts Self-Destructed . | . . . . Prevented . | . . . . Kills | -11 -10 -10 -10 ------- Run | Jun Mat Min Exi Combat Hostiles Destroyed 29 | . 15 12 2 Guns 11 | . 7 2 2 AOE 18 | . 8 10 . Classes Destroyed 11 | 1 7 2 1 Builder 5 | . 5 . . Hauler 1 | . 1 . . Recycler 5 | 1 2 2 . Operator 2 | . 2 . . Watcher 3 | . 3 . . Swarmer 9 | . 6 3 . Grunt 7 | . 7 . . Demolisher 2 | . . 2 . Subdweller 2 | . 2 . . Zionite 1 | . . . 1 Assembled 9 | . . 7 2 Best Kill Streak 7 | 1 4 7 3 Combat Bots Only 7 | . 3 7 2 Max Kills in Single Turn 3 | 1 2 3 1 Gunslinging . | . . . . Exploded 3 | . 1 3 . Melee . | . . . . Uniques/NPCs Destroyed . | . . . . Combat | -11 -10 -10 -10 -------- Run | Jun Mat Min Exi Damage Taken 1842 | . 471 839 532 Core 254 | . 64 46 144 Absorbed by Shields . | . . . . Regen/Repaired (Parts) 85 | . 85 . . Core Remaining (%) 100 | 100 . . . Volleys Fired 99 | 1 76 11 11 Largest 2 | 2 2 2 2 Hottest 85 | 80 60 85 85 Shots Fired 126 | 2 90 12 22 Gun 104 | 2 73 7 22 Cannon . | . . . . Launcher 22 | . 17 5 . Special . | . . . . Kinetic 44 | . 32 1 11 Thermal 17 | . . 6 11 Explosive 22 | . 17 5 . Electromagnetic 43 | 2 41 . . Robot Hit Streak 15 | 2 15 5 6 Robot Miss Streak 4 | . 3 2 4 Penetration Max . | . . . . Secondary Targets 1 | . . . 1 Max Gunslinging Chain 1 | . . . 1 Shots Hit Robots 72 | 2 52 6 12 Core Hits 69 | 2 36 23 8 Critical Kills . | . . . . Critical Parts Destroyed . | . . . . Critical Strikes 1 | . . . 1 Burn 1 | . . . 1 Melee Attacks 1 | . . 1 . Impact . | . . . . Slashing 1 | . . 1 . Piercing . | . . . . Sneak Attacks 1 | . . 1 . Combat Hostiles . | . . . . Follow-up Attacks . | . . . . Damage Inflicted 2677 | 27 1766 658 226 Guns 980 | 27 660 67 226 Cannons . | . . . . Explosions 1639 | . 1106 533 . Melee 48 | . . 48 . Ramming 10 | . . 10 . Kinetic 376 | . 258 . 118 Thermal 749 | . 574 67 108 Explosive 1065 | . 532 533 . Electromagnetic 429 | 27 402 . . Impact . | . . . . Slashing 48 | . . 48 . Piercing . | . . . . Highest Corruption 2 | . . 2 2 Average Corruption 2 | . . 2 2 Corruption Purged . | . . . . Corruption Blocked . | . . . . Effects 20 | . . 13 7 Message Errors 7 | . . 5 2 Matter Fused 3 | . . 2 1 Heat Flow Errors 3 | . . 2 1 Energy Discharges 3 | . . 2 1 Data Loss (minor) 2 | . . 1 1 Data Loss (major) 1 | . . 1 . Misfires 1 | . . . 1 Overload Shots . | . . . . Overflow Damage 86 | . 53 33 . Projectiles . | . . . . Explosions 78 | . 53 25 . Melee 8 | . . 8 . Knockbacks . | . . . . Impact . | . . . . Kinetic . | . . . . Secondary . | . . . . Self-Inflicted Damage 71 | . 71 . . Shots 3 | . 3 . . Rammed 2 | . . 2 . Targets Rammed 4 | . . 4 . Kicked . | . . . . Crushed 2 | . . 2 . Highest Temperature 216 | 18 48 216 216 Average Temperature 55 | 12 21 66 93 Received Heat Transfer 179 | . 153 26 . Siege Activations . | . . . . Robots Corrupted . | . . . . Combat Hostiles . | . . . . Parts Fried 1 | . 1 . . Impact Corruptions . | . . . . Robots Melted . | . . . . Combat Hostiles . | . . . . Parts Melted . | . . . . Heat Transferred 1031 | . 550 148 333 Parts Sabotaged . | . . . . Parts Stolen . | . . . . Parts Stripped . | . . . . Power Chain Reactions 5 | . 5 . . Missiles Intercepted . | . . . . Alert | -11 -10 -10 -10 ------- Run | Jun Mat Min Exi Peak Influence 317 | 5 317 223 . Initial 97 | . 3 97 . Average 160 | 3 225 72 . Maximum Alert Level 1 | . 1 1 . Low Security (%) 48 | 100 21 87 . Level 1 51 | . 78 12 . Level 2 . | . . . . Level 3 . | . . . . Level 4 . | . . . . Level 5 . | . . . . High Security . | . . . . Max Security . | . . . . Squads Dispatched 3 | . 2 1 . Investigation 1 | . . 1 . Extermination . | . . . . Reinforcement 2 | . 2 . . Assault . | . . . . Garrison . | . . . . Intercept . | . . . . Searches Triggered . | . . . . Construction Impeded . | . . . . Haulers Reinforced . | . . . . Active Scanning Responses . | . . . . Cargo Convoy Interrupts . | . . . . Stealth | -11 -10 -10 -10 --------- Run | Jun Mat Min Exi Distress Signals 2 | . 1 1 . Communications Jammed . | . . . . Distress Signals . | . . . . Times Spotted 56 | . 21 22 13 Peak Tracking Total 13 | . 3 11 13 Tactical Retreats 2 | . . 1 1 Traps | -11 -10 -10 -10 ------- Run | Jun Mat Min Exi Traps Triggered . | . . . . Indirectly . | . . . . Trap Hack Attempts . | . . . . Triggered . | . . . . Disarmed . | . . . . Reprogrammed . | . . . . Reused . | . . . . Traps Extracted . | . . . . Installed . | . . . . Triggered . | . . . . Machines | -11 -10 -10 -10 ---------- Run | Jun Mat Min Exi Machines Disabled 13 | . 10 . 3 Max in Single Turn 6 | . 6 . 1 Machines Repaired . | . . . . Machines Sabotaged . | . . . . Overloaded Fab Kills . | . . . . Hacking | -11 -10 -10 -10 --------- Run | Jun Mat Min Exi Machines Accessed 9 | . 6 1 2 Terminals 5 | . 5 . . Fabricators . | . . . . Repair Stations 1 | . 1 . . Recycling Units . | . . . . Scanalyzers . | . . . . Garrison Access . | . . . . Total Hacks 19 | . 16 1 2 Successful 11 | . 8 1 2 Failed 8 | . 8 . . Catastrophic 6 | . 6 . . Database Lockouts . | . . . . Manual 12 | . 11 . 1 Terminals 12 | . 12 . . Fabricators . | . . . . Repair Stations 4 | . 4 . . Recycling Units . | . . . . Scanalyzers . | . . . . Garrison Access . | . . . . Terminal Hacks 7 | . 4 1 2 Record 2 | . 1 . 1 Robot Analysis 3 | . 3 . . Open Door 1 | . . 1 . Derelict Proto ID Bank 1 | . . . 1 Fabricator Hacks . | . . . . Repair Station Hacks 3 | . 3 . . Scan Component 2 | . 2 . . Repair 1 | . 1 . . Recycling Unit Hacks . | . . . . Scanalyzer . | . . . . Garrison Access Hacks . | . . . . Unauthorized Hacks 1 | . 1 . . Terminals 1 | . 1 . . Botnet 1 | . 1 . . Fabricators . | . . . . Repair Stations . | . . . . Recycling Units . | . . . . Scanalyzers . | . . . . Garrison Access . | . . . . Data Cores Recovered . | . . . . Used . | . . . . Hacking Detections 5 | . 5 . . Full Trace Events . | . . . . Feedback Events . | . . . . Feedback Blocked . | . . . . Robot Schematics Acquired . | . . . . Robots Built . | . . . . Authchips . | . . . . Time . | . . . . Total Robot Build Rating . | . . . . Part Schematics Acquired . | . . . . Parts Built . | . . . . Authchips . | . . . . Time . | . . . . Total Part Build Rating . | . . . . Parts Repaired 1 | . 1 . . Time 26 | . 26 . . Parts Recycled . | . . . . Recycled Matter . | . . . . Retrieved Matter . | . . . . Retrieved Components . | . . . . Parts Scanalyzed . | . . . . Part Schematics Acquired . | . . . . Parts Damaged . | . . . . Bothacking | -11 -10 -10 -10 ------------ Run | Jun Mat Min Exi Used RIF Installer . | . . . . Robots Hacked . | . . . . Non-combat . | . . . . Combat . | . . . . Robot Hacks Applied . | . . . . Relay Couplers Released . | . . . . Fabnet Peak Effective % . | . . . . Robots Rewired . | . . . . Allies Hacked . | . . . . Hacks Repelled . | . . . . Allies | -11 -10 -10 -10 -------- Run | Jun Mat Min Exi Total Allies 3 | . . 3 . Largest Group 3 | . . 3 2 Highest-Rated Group 40 | . . 40 24 Highest-Rated Ally 16 | . . 16 16 Total Orders . | . . . . Ally Attacks 48 | . . 16 32 Total Damage 353 | . . 191 162 Kills 10 | . . 3 7 Allies Corrupted . | . . . . Allies Melted . | . . . . Intel | -11 -10 -10 -10 ------- Run | Jun Mat Min Exi Robot Analysis Total 3 | . 3 . . Derelict Logs Recovered 1 | . . 1 . Drone Launches . | . . . . Drone Recoveries . | . . . . Exploration | -11 -10 -10 -10 ------------- Run | Jun Mat Min Exi Turns Passed 3225 | 18 1523 1072 612 Spaces Moved 1771 | 13 794 609 355 Core . | . . . . Treads 1728 | . 764 609 355 Legs 43 | 13 30 . . Wheels . | . . . . Hover . | . . . . Flight . | . . . . Fastest Speed 120 | 120 120 160 160 Average Speed 159 | 120 158 160 160 Slowest Speed 240 | 120 160 240 160 Overloaded Moves . | . . . . Propulsion Burnouts . | . . . . Robots Hopped . | . . . . Cave-ins Triggered . | . . . . Exploration Rate (%) 70 | 3 99 95 85 Regions Visited 3 Branch Regions 2 Pre-discovered Areas 2 | . . 1 1 Known Exits Taken 1 | . 1 . . Unknown Exits Taken 2 | 1 . 1 . Scrap Searched 1 | . . 1 . Spaces Dug . | . . . . Terrain Destroyed 144 | . 118 26 . Melee . | . . . . Projectile . | . . . . AOE 144 | . 118 26 . Terrain Rammed . | . . . . Walls Destroyed . | . . . . Machines Disabled . | . . . . Actions | -11 -10 -10 -10 --------- Run | Jun Mat Min Exi Total 2046 | 13 971 685 377 Wait 101 | . 64 37 . Move 1768 | 12 793 608 355 Hop . | . . . . Pick Up 27 | . 16 9 2 Fast Attach 3 | . 2 1 . Attach 13 | . 4 9 . Detach . | . . . . Swap 13 | . 5 3 5 Drop 17 | . 11 2 4 Fire 99 | 1 76 11 11 Melee 1 | . . 1 . Ram . | . . . . Kick . | . . . . Crush 4 | . . 4 . Escape Stasis . | . . . . Rewire . | . . . . Trap . | . . . . Miscellaneous . | . . . . Route ------- -11/Junkyard -10/Materials (discovered 6 exits: [*Mat x3] / *Min x2 / [*Sub]) -10/Mines (discovered 3 exits: [*Mat x2] / *Exi) -10/Exiles History --------- Turn | Location | Event 1 | -11/Junkyard | Discovered new exit (range 3) 19 | -11/Junkyard | Entered Materials 311 | -10/Materials | Build established: Mutant 323 | -10/Materials | Discovered new exit (range 16) 530 | -10/Materials | Repaired Lgt. Treads 595 | -10/Materials | Discovered new exit (range 6) 627 | -10/Materials | Discovered new exit (range 6) 868 | -10/Materials | Discovered new exit (range 7) 1100 | -10/Materials | Derelicts attacked the area 1143 | -10/Materials | Discovered new exit (range 15) 1315 | -10/Materials | Discovered new exit (range 15) 1339 | -10/Materials | Identified exit to Mines 1542 | -10/Materials | Entered Mines 1562 | -10/Mines | Discovered new exit (range 5) 1580 | -10/Mines | Met a Derelict bent on vengeance 1603 | -10/Mines | Met a Derelict shopkeep closing up shop 1672 | -10/Mines | Assembled infested the area 1677 | -10/Mines | Assisted by a Guerilla fighting off Assembled 1711 | -10/Mines | Destroyed 7 combat bots 1746 | -10/Mines | Lost 8 parts (2p3n1u2w) 1768 | -10/Mines | Assisted by bots powering up and referring to "LRC-V3" 1877 | -10/Mines | Found a hidden stash of uninstalled traps 1920 | -10/Mines | Learned location of Zion (-7) 2017 | -10/Mines | Discovered new exit (range 4) 2222 | -10/Mines | Build established: Scavenger-Mutant 2608 | -10/Mines | Deemed a non-threat by the Exiles lab entrance 2608 | -10/Mines | Discovered new exit (range 5) 2614 | -10/Mines | Entered Exiles 2614 | -10/Exiles | Accompanied by 2 allies 2654 | -10/Exiles | Met 8R-AWN 2682 | -10/Exiles | Met EX-HEX 2730 | -10/Exiles | Met EX-BIN 2758 | -10/Exiles | Aligned with FarCom system 2760 | -10/Exiles | Given EX-Vault access code 2797 | -10/Exiles | Opened EX-Vault 2808 | -10/Exiles | Found Latent Energy Streamer 2845 | -10/Exiles | Warned to stay clear of 0b10 Research branches 2896 | -10/Exiles | Met EX-DEC 3072 | -10/Exiles | Visited The Gauntlet 3172 | -10/Exiles | Attacked by the Exiles 3214 | -10/Exiles | Core integrity fell below 50% 3226 | -10/Exiles | Core integrity fell below 20% 3226 | -10/Exiles | Destroyed by EX-DEC with AWS/EX-DEC Last Messages --------------- 03191_ Machine disabled. 03193_ as-62116 destroyed. 03194_ Trooper 1b destroyed. 03197_ Mercenary 1a knocked back. 03200_ as-95949 destroyed. 03200_ Switching to secondary target: as-99937. 03203_ as-99937 suffers critical hit (Burn). 03203_ Machine disabled. 03204_ Mercenary 1a knocked back. 03207_ EX-BIN: "I just want to science!" 03208_ Machine disabled. 03209_ as-99937 destroyed. 03212_ as-72375 destroyed. 03215_ Destroyed EX Chip 2. 03219_ as-28844 destroyed. 03221_ Chain reaction triggered in Prototype Reactor. 03221_ EX-BIN: "You can't kill me, my evil twin will get revenge!" 03221_ EX-BIN destroyed. 03221_ as-62433 destroyed. 03224_ P1-QS7(z) destroyed. Map ----- +----------------------------------------------------+ | ????????????????????##"" ""####????? | | ????????????????????##" """"####?????? | | ????????????????????##""" """###??????? | | ????????????????????### ""###???????? | | ????????????????????###"" """####???????? | | ?????????????????????###""" ####????????? | | ?????????????????????####"""" ####?????????? | | ??????????????????????##### ###??????????? | | ???????????????????????######## ###???????????? | | ?????????????????????????####### ###???????????? | | ?????????????????????????????### ##????????????? | | ??????????????????????????????## ##????????????? | | ######???????????????#####????## ##????????????? | | ######?????????????#######????## ##????????????? | | """"""??????"""""??##"""""????## ##????????????? | | " ""##??"""""""####"""""""#### ##????????????? | | "#"""""""" "####" """"#### ##????????????? | | " ""#""#""" """####"" """#### ##????????????? | | " ""#""#"" ""####"" ""#### #########?????? | | #"""###""###"""########"""######= #########?????? | | " """"""" """""""" * " [%! """""""#"?????? | | """""" """ "" % ac c "#"" "??? | | =% =% %% " "??? | | % %* % " "???? | | !%= = = " "???? | | "" ! *%= g @% #"" "??? | | " """""" " "" "" """" """""#"?????? | | #"""########"""### "###"""########"""#######?????? | | " ""####"" ""#""#"" ""####"" ""#####?????? | | "" """####""" ""#""#""" ""##???? """##????????? | | """ "####" """"""""#" " "##????"""""##????????? | | """"""####"""""""??"#"""""""##???? """"##????????? | | """"""????""""""???"#"""""""##????"""????????????? | | ???????????????????"##########???????????????????? | | ?????????????????????#######?????????????????????? | | ?????????????????????????????????????????????????? | | ?????????????????????????????????????????????????? | | ?????????????????????????????????????????????????? | | | | | | | | | | | | | | | | | | | | | | | | | +----------------------------------------------------+ Best States ------------- Heat Dissipation 25 Energy Generation 14 Energy Capacity 250 Matter Stores 300 Matter Capacity 300 Sight Range 16 Terrain Scan Density 10 Armor Coverage 150 Evasion (%) 50 Recoil Reduction 2 Item Schematics ----------------- None Robot Schematics ------------------ None Fabricated ------------ Nothing Alien Tech Used ----------------- None Achievements -------------- None Challenges ------------ None Game ------ Seed WaveHoverSpear Manual? 0 Play Time 00:26:29 Cumulative 71.3 hours Start 2023.08.15 @ 17:40:07 End 2023.08.15 @ 18:07:42 Sessions 1 Manual Loads 0 Difficulty Rogue Special Mode None Game No. 41 Rogue 41 Adventurer 0 Explorer 0 Win Type - Total 0 Types 0/0/0/0/0/0/0/0/0 Lore% 35 Gallery% 35 Achievement% 35 Wizard Run 0 Options --------- ASCII 0 Keyboard 0 Movement Mouse Keybinds 0 Fullscreen 1 Font 16/SmallcapsGlow Map View 82x54 Tactical HUD 1 Map Filters NONE Filters NONE Steam 1 RUN: 332fc1be-52a5-4717-8b0c-09f35685e1eb